bitfinex/quotes_ETHUSD_20260106
["timestamp","ask_amount","ask_price","bid_price","bid_amount"]
[1767658810625,0.814,3214.6,3213.7,0.98676148]
[1767658811186,3.11048908,3215.0,3213.7,0.98676148]
[1767658811187,3.11058041,3214.9,3213.8,1.01587729]
[1767658811394,3.11058041,3214.9,3213.8,0.98476148]
[1767658812289,4.02984046,3214.9,3213.8,0.98476148]
[1767658812490,4.82526904,3214.9,3213.9,0.40983975]
[1767658813122,0.79542858,3214.9,3214.0,4.12726302]
[1767658813303,4.84365928,3215.1,3214.0,0.98476148]
[1767658813494,4.84365928,3215.1,3213.9,0.40983975]
[1767658813495,0.91926568,3215.0,3213.9,0.40983975]
[1767658813695,0.91926568,3215.0,3213.9,3.5213043]
[1767658813919,0.91926568,3215.0,3214.0,0.03111387]
[1767658814098,4.0304609,3215.3,3214.2,0.98476148]
[1767658814299,0.91926568,3215.2,3214.1,0.35524182]
[1767658814534,0.91926568,3215.2,3213.8,4.9113103]
[1767658814733,0.91926568,3215.2,3213.8,0.98476148]
[1767658815230,7.139912,3215.1,3213.8,4.09627337]
[1767658815426,7.139912,3215.1,3213.9,0.98476148]
[1767658815427,4.02958884,3215.1,3213.9,0.98476148]
[1767658815739,0.001,3215.3,3213.9,1.01587632]
[1767658816032,0.001,3215.3,3214.1,0.98476148]
[1767658816430,0.001,3215.3,3214.0,0.72389695]
[1767658816431,0.001,3215.3,3214.3,0.98476148]
[1767658817308,0.001,3215.3,3214.5,0.98476148]
[1767658819328,0.001,3215.3,3214.6,0.98476148]
[1767658820005,0.001,3215.0,3214.6,0.98476148]
[1767658820399,0.001,3215.3,3214.8,0.98476148]
[1767658820825,3.92355499,3215.9,3214.7,0.40956525]
[1767658820826,0.91926568,3215.7,3214.7,0.40956525]
[1767658821202,3.92356958,3215.9,3214.8,0.98476148]
[1767658821396,3.11025403,3216.3,3215.0,0.98476148]
[1767658821622,3.92325937,3216.2,3215.0,0.98476148]
[1767658821837,0.79527791,3216.1,3215.1,0.98476148]
[1767658822031,3.92325937,3216.2,3215.1,0.98476148]
[1767658822249,0.814,3216.2,3215.1,0.98476148]
[1767658822760,0.001,3216.3,3215.1,0.98476148]
[1767658822924,3.11017258,3216.3,3215.1,0.98476148]
[1767658823253,7.13861084,3216.3,3215.1,0.98476148]
[1767658823456,7.13797778,3216.1,3215.2,0.17053425]
[1767658823648,4.02862173,3216.1,3215.2,0.17053425]
[1767658823849,0.91926568,3216.1,3215.2,1.15529573]
[1767658824040,3.11020487,3216.3,3215.3,0.98476148]
[1767658824356,0.001,3216.3,3215.3,0.98476148]
[1767658824524,0.001,3216.3,3215.5,0.98476148]
[1767658825447,0.001,3216.3,3215.7,0.98476148]
[1767658825947,0.001,3216.7,3215.7,0.98476148]
[1767658826653,0.92026568,3216.7,3215.6,3.10983953]
[1767658826949,0.91926568,3216.6,3215.2,0.98553425]
[1767658827169,0.91926568,3216.4,3215.2,1.97029573]
[1767658827327,0.91926568,3216.4,3215.2,4.26546737]
[1767658827527,0.91926568,3216.3,3215.2,4.26548936]
[1767658828036,0.91926568,3216.3,3215.2,7.37571578]
[1767658828253,0.91926568,3216.3,3215.3,0.81907158]
[1767658828555,0.91926568,3216.3,3215.3,1.80383306]
[1767658829757,4.02852505,3216.2,3215.3,0.81907158]
[1767658829966,4.02852505,3216.2,3215.1,3.9252981]
[1767658830156,0.91926568,3216.4,3215.3,4.09484271]
[1767658830461,0.91926568,3216.4,3215.1,0.815]
[1767658830752,0.91926568,3216.4,3215.3,3.11011512]
[1767658830961,0.91926568,3216.4,3215.3,6.22024481]
[1767658831144,4.1070776,3216.7,3215.5,0.9187633]
[1767658831348,0.99826256,3216.7,3215.6,0.94986169]
[1767658831551,0.001,3216.0,3215.6,0.94986169]
[1767658831745,0.001,3216.7,3215.8,0.9187633]
[1767658831946,0.001,3216.7,3216.0,0.9187633]
[1767658833556,0.001,3216.7,3215.9,0.71382489]
[1767658834070,0.001,3216.7,3215.9,3.82332592]
[1767658834271,0.001,3216.7,3216.0,0.9187633]
[1767658834765,0.001,3216.7,3216.0,0.94985782]
[1767658835060,4.10550935,3217.3,3216.2,0.9187633]
[1767658835061,3.10833607,3217.2,3216.2,0.9187633]
[1767658835233,0.99726256,3217.1,3216.1,1.60327332]
[1767658835431,0.99726256,3217.2,3216.2,0.9187633]
[1767658835662,0.99726256,3217.2,3216.1,1.60327332]
[1767658835962,3.10838954,3217.1,3216.2,0.16032733]
[1767658836159,0.99726256,3217.1,3216.2,4.18831186]
[1767658836363,3.108267,3217.3,3216.3,0.9187633]
[1767658837405,0.814,3217.4,3216.3,0.9187633]
[1767658837758,3.92211314,3217.4,3216.3,0.9187633]
[1767658837952,3.92211314,3217.4,3216.5,0.9187633]
[1767658838760,3.92211314,3217.4,3216.2,0.16032733]
[1767658838761,0.99726256,3217.3,3216.2,0.16032733]
[1767658838968,0.99726256,3217.3,3216.3,0.814]
[1767658840070,3.10829292,3217.2,3216.3,0.814]
[1767658840364,0.99726256,3217.1,3216.3,0.814]
[1767658840579,0.99726256,3217.1,3216.3,1.22236304]
[1767658840986,0.99726256,3217.1,3216.3,0.814]
[1767658841286,0.99726256,3217.1,3213.9,1.5234165]
[1767658841287,0.99726256,3217.1,3215.9,0.814]
[1767658842576,0.99726256,3216.9,3215.9,0.814]
[1767658842773,0.99726256,3216.9,3215.7,0.9187633]
[1767658843090,0.99726256,3216.9,3215.8,3.92363927]
[1767658843289,0.99726256,3216.9,3216.6,0.002]
[1767658843600,0.001,3217.0,3216.6,0.002]
[1767658848989,0.99826256,3217.0,3216.3,0.002]
[1767658850592,3.10858279,3216.9,3216.3,0.002]
[1767658850795,3.8301098,3216.9,3216.3,0.002]
[1767658851489,0.99726256,3216.8,3215.8,3.10963524]
[1767658851698,3.10858279,3216.9,3215.8,4.02839854]
[1767658852304,0.99726256,3216.9,3215.8,4.0283441]
[1767658852816,4.10587197,3216.9,3215.8,0.9187633]
[1767658853014,0.99726256,3216.7,3215.8,1.09203963]
[1767658854191,0.99726256,3216.7,3215.5,4.05875162]
[1767658854404,0.99726256,3216.7,3215.6,3.10975087]
[1767658854590,0.99726256,3216.7,3215.6,4.0586286]
[1767658854919,4.02036662,3216.6,3215.6,0.94887773]
[1767658855419,0.9114939,3216.5,3215.6,0.94887773]
[1767658855711,0.9114939,3216.5,3216.1,0.002]
[1767658856516,3.10987272,3216.6,3216.1,0.002]
[1767658856916,0.001,3216.6,3216.1,0.002]
[1767658857115,0.001,3216.6,3216.1,0.95087773]
[1767658857287,0.001,3216.6,3216.2,0.03109259]
[1767658857489,0.001,3216.6,3216.1,0.95087773]
[1767658857712,0.001,3216.6,3216.2,0.03109259]
[1767658857914,0.001,3216.6,3216.2,0.94887773]
[1767658858086,0.9124939,3216.6,3216.1,0.002]
[1767658859396,0.001,3216.6,3216.1,0.002]
[1767658861396,0.9138482,3216.9,3216.2,0.31114527]
[1767658863198,3.10867943,3216.8,3216.1,0.002]
[1767658863523,0.9138482,3216.9,3216.1,0.002]
[1767658863706,0.001,3217.0,3216.1,0.91878984]
[1767658863903,0.9138482,3216.9,3216.1,0.002]
[1767658865329,4.02252464,3216.9,3216.1,0.002]
[1767658865507,4.73572963,3216.9,3216.1,0.002]
[1767658867110,0.001,3217.0,3216.1,0.91878984]
[1767658867627,0.9148482,3217.0,3216.1,0.91878984]
[1767658868508,0.001,3216.6,3216.1,0.91878984]
[1767658870031,0.9148482,3217.0,3216.1,3.14244961]
[1767658870234,0.001,3217.0,3216.3,0.91678984]
[1767658870543,0.001,3217.0,3216.2,0.39564496]
[1767658870544,3.10953002,3217.0,3216.1,0.002]
[1767658870841,0.9138482,3216.9,3216.1,0.002]
[1767658872441,3.10957398,3217.0,3216.1,0.91878984]
[1767658872612,3.10957398,3217.0,3216.1,1.32006925]
[1767658872937,0.001,3217.0,3216.2,0.94788243]
[1767658873444,0.001,3217.0,3216.2,0.91678984]
[1767658874345,0.9148482,3217.0,3216.2,0.91678984]
[1767658875481,0.001,3217.0,3216.2,0.91678984]
[1767658875838,0.001,3217.0,3216.3,0.4840582]
[1767658876051,0.001,3217.0,3216.2,0.91678984]
[1767658877039,0.001,3217.0,3216.2,0.9102627]
[1767658877441,0.001,3217.0,3216.3,0.91678984]
[1767658878138,4.02287186,3217.5,3216.4,0.9478805]
[1767658878356,0.9148482,3217.5,3216.5,3.92290883]
[1767658878556,0.9148482,3217.5,3216.6,0.48396987]
[1767658878839,0.9148482,3217.5,3216.6,1.40075971]
[1767658880174,4.02288047,3217.5,3216.6,1.40075971]
[1767658880472,0.9148482,3217.5,3216.6,4.50959255]
[1767658880676,0.001,3217.2,3216.7,0.91678984]
[1767658880856,0.001,3217.2,3216.8,0.45095926]
[1767658881251,0.001,3217.2,3216.9,0.91678984]
[1767658881657,0.001,3217.2,3216.8,0.45095926]
[1767658883158,0.001,3217.2,3216.8,1.3677491]
[1767658885279,0.001,3217.2,3216.8,4.47642477]
[1767658885465,0.9148482,3217.5,3216.9,0.44764248]
[1767658886591,0.9148482,3217.5,3216.6,0.48396987]
[1767658886897,0.9148482,3217.5,3216.5,0.814]
[1767658887078,0.9148482,3217.5,3216.5,3.9229685]
[1767658887896,0.9148482,3217.5,3216.6,3.10886974]
[1767658888084,0.001,3217.5,3216.7,0.91678984]
[1767658888805,3.1090238,3217.5,3216.7,0.91678984]
[1767658888959,0.001,3217.5,3216.7,0.91678984]
[1767658890220,4.05398416,3217.3,3216.4,0.91878984]
[1767658890518,4.96783236,3217.0,3216.1,0.91723556]
[1767658891707,4.05398416,3216.7,3216.1,0.00044572]
[1767658892274,7.16256695,3216.9,3216.1,0.00044572]
[1767658893289,8.28105848,3216.9,3216.1,0.00044572]
[1767658893802,8.28105848,3216.9,3216.6,0.002]
[1767658894010,8.28105848,3216.9,3216.1,0.00044572]
[1767658894207,4.05398416,3216.9,3216.1,0.00044572]
[1767658894410,0.9138482,3217.0,3216.1,0.03153928]
[1767658894716,3.10839409,3217.1,3216.1,1.00750517]
[1767658896799,4.05398416,3217.0,3216.1,0.97641161]
[1767658896993,0.94098507,3216.9,3216.1,0.00044572]
[1767658897194,4.99496923,3216.3,3215.2,0.97596589]
[1767658897392,4.05398416,3216.1,3215.3,3.1101235]
[1767658897608,4.05398416,3216.1,3215.3,0.97596589]
[1767658898516,0.94098507,3216.3,3215.3,0.97596589]
[1767658898711,4.05024444,3216.2,3215.1,3.11031088]
[1767658898916,0.94098507,3216.1,3215.0,4.08835414]
[1767658899112,0.94098507,3216.1,3215.1,0.49023541]
[1767658899283,0.94098507,3216.1,3215.0,0.002]
[1767658899685,0.814,3216.0,3215.1,0.97596589]
[1767658900714,1.75498507,3216.1,3215.1,0.97596589]
[1767658901012,0.94098507,3215.9,3215.0,0.002]
[1767658903392,7.16026469,3215.9,3215.0,0.002]
[1767658903592,0.94098507,3215.7,3215.0,0.002]
[1767658904746,0.71602647,3215.8,3215.0,0.03310419]
[1767658904925,3.10963981,3215.9,3215.0,0.03310419]
[1767658906435,3.10963981,3215.9,3215.3,0.002]
[1767658906711,0.94098507,3216.3,3215.3,0.03310129]
[1767658907129,0.94098507,3216.3,3215.3,0.97796589]
[1767658907330,0.814,3216.2,3215.3,0.97796589]
[1767658907543,1.75498507,3216.2,3215.3,0.97796589]
[1767658908045,3.10935605,3216.1,3215.3,0.97796589]
[1767658909847,6.2187121,3216.1,3215.3,0.97796589]
[1767658911047,0.94098507,3216.0,3215.3,0.002]
[1767658911232,0.94098507,3215.8,3215.3,0.002]
[1767658911431,0.94098507,3215.6,3215.0,0.002]
[1767658911624,0.94098507,3215.6,3214.8,0.002]
[1767658911825,0.94098507,3215.4,3214.8,0.002]
[1767658912570,0.94098507,3215.4,3214.4,3.87999467]
[1767658912755,0.94098507,3215.4,3214.5,3.11089594]
[1767658912956,0.94098507,3215.4,3214.6,3.1107878]
[1767658913157,0.94098507,3215.4,3214.5,3.11088773]
[1767658913361,0.94098507,3215.4,3214.6,0.38798877]
[1767658913561,0.94098507,3215.3,3214.6,0.38798877]
[1767658915069,0.93898507,3215.3,3214.6,0.38798877]
[1767658915273,0.96189604,3215.1,3214.0,0.815]
[1767658915468,0.96189604,3215.1,3213.9,3.981045]
[1767658915685,0.96189604,3215.1,3213.9,3.11144161]
[1767658915878,0.96189604,3215.1,3213.8,3.11154122]
[1767658916172,0.96189604,3215.1,3214.0,3.11138681]
[1767658916343,0.96189604,3215.1,3214.0,0.91080763]
[1767658917172,0.96189604,3215.1,3214.1,3.11125207]
[1767658917343,3.10983953,3215.6,3214.2,0.91080763]
[1767658917543,1.22117356,3215.5,3214.4,0.91080763]
[1767658918140,1.22117356,3215.5,3214.5,0.03110903]
[1767658918341,1.22117356,3215.5,3214.5,0.94191666]
[1767658918576,3.10983953,3215.6,3214.5,0.94191666]
[1767658918779,0.814,3215.7,3214.8,0.91080763]
[1767658919274,0.001,3215.1,3214.9,0.91080763]
[1767658919486,0.814,3215.7,3215.0,0.03110419]
[1767658919653,4.07138587,3216.0,3215.0,0.03110419]
[1767658919859,4.07138587,3216.0,3215.1,0.40524098]
[1767658919860,4.88538587,3216.0,3215.1,0.40524098]
[1767658920060,4.88538587,3216.0,3214.9,4.0213233]
[1767658920478,3.1093955,3216.1,3215.0,0.91080763]
[1767658920689,3.9233955,3216.1,3215.0,0.94191182]
[1767658921185,7.032791,3216.1,3215.0,0.91080763]
[1767658921785,0.90581246,3216.0,3215.0,0.91080763]
[1767658921989,7.032791,3216.1,3214.6,3.11075295]
[1767658921990,0.90581246,3215.8,3214.6,3.11075295]
[1767658922360,0.90581246,3215.8,3214.6,4.09455819]
[1767658922561,0.90581246,3215.8,3214.6,0.98380524]
[1767658923288,7.1252981,3215.7,3214.6,0.98380524]
[1767658923591,1.52652981,3215.6,3214.6,0.98380524]
[1767658923766,0.814,3215.6,3214.6,0.98380524]
[1767658924174,0.90581246,3215.5,3214.3,0.98380524]
[1767658925383,3.11003296,3215.4,3214.3,0.98380524]
[1767658925593,6.22006592,3215.4,3214.3,0.98380524]
[1767658927199,0.90581246,3215.3,3214.2,0.98580524]
[1767658927402,0.90581246,3215.3,3214.2,0.002]
[1767658927403,0.90581246,3215.1,3214.2,0.002]
[1767658927590,6.22045284,3215.2,3214.2,0.002]
[1767658927591,1.71981246,3215.0,3214.2,0.002]
[1767658928671,1.71781247,3215.0,3214.2,0.002]
[1767658929506,6.22045284,3215.2,3214.2,0.98580524]
[1767658929507,3.11022642,3215.2,3214.2,0.98580524]
[1767658929683,3.92422642,3215.2,3214.4,0.98380524]
[1767658929880,3.92422642,3215.2,3214.5,0.03110903]
[1767658930202,4.01585444,3215.4,3214.5,0.03110903]
[1767658930410,0.814,3215.3,3214.5,0.03110903]
[1767658930781,0.814,3215.3,3214.4,0.98380524]
[1767658930782,0.814,3215.3,3214.6,0.002]
[1767658930983,0.001,3215.1,3214.6,0.002]
[1767658931404,0.90681246,3215.1,3214.6,0.002]
[1767658931585,4.01623236,3215.0,3214.6,0.002]
[1767658932508,3.1104199,3215.0,3214.6,0.002]
[1767658933419,6.84301491,3215.0,3214.6,0.002]
[1767658933706,6.84301491,3215.0,3214.2,0.002]
[1767658933707,0.90581246,3214.9,3214.2,0.002]
[1767658934991,0.90581246,3214.7,3213.9,0.002]
[1767658935315,0.17198125,3214.6,3213.9,0.002]
[1767658936116,3.11090371,3214.5,3213.9,0.002]
[1767658936321,4.01471617,3214.5,3213.9,0.002]
[1767658937190,0.90581246,3214.5,3213.9,0.002]
[1767658937503,3.28282713,3214.6,3213.9,0.002]
[1767658937705,0.17198125,3214.6,3213.9,0.002]
[1767658937884,3.11072705,3214.7,3213.9,0.002]
[1767658938610,3.73260193,3215.0,3213.9,0.98580524]
[1767658938792,4.54660193,3215.0,3213.9,0.98580524]
[1767658939918,3.11058343,3214.9,3213.9,0.98580524]
[1767658940292,6.22116686,3214.9,3213.9,0.98580524]
[1767658940490,7.98339476,3214.9,3213.9,0.98580524]
[1767658942232,4.87281133,3214.9,3213.9,0.98580524]
[1767658942922,4.87281133,3214.9,3214.2,0.002]
[1767658943907,0.814,3214.8,3214.2,0.002]
[1767658946708,3.11071017,3214.7,3214.2,0.002]
[1767658946909,0.814,3214.8,3214.2,0.002]
[1767658947941,3.92461515,3214.8,3214.2,0.002]
[1767658949570,0.814,3214.8,3214.2,0.002]
[1767658950060,3.92462764,3214.8,3214.2,0.002]
[1767658950963,7.94106774,3214.8,3214.2,0.002]
[1767658951132,0.79410677,3214.7,3214.2,0.002]
[1767658951329,4.8304401,3214.8,3214.2,0.002]
[1767658952258,1.71981246,3214.8,3214.2,0.002]
[1767658952848,4.83042633,3214.8,3214.2,0.002]
[1767658953346,1.71981246,3214.8,3214.2,0.002]
[1767658954370,4.83045737,3214.8,3214.2,0.002]
[1767658954667,0.001,3214.6,3214.2,0.002]
[1767658958763,0.93377325,3214.6,3214.2,0.002]
[1767658958963,0.93177325,3214.6,3214.2,0.002]
[1767658959165,0.93277325,3214.5,3214.2,0.002]
[1767658959667,4.04341816,3214.8,3214.2,0.002]
[1767658959866,0.814,3214.7,3214.2,0.002]
[1767658960068,1.74677325,3214.7,3214.2,0.002]
[1767658960379,0.93277325,3214.6,3214.2,0.002]
[1767658960687,0.93277325,3214.5,3214.2,0.002]
[1767658963105,0.93277325,3214.3,3213.7,0.002]
[1767658963292,0.93077325,3214.3,3213.7,0.002]
[1767658964276,4.04372023,3214.5,3213.7,0.99659132]
[1767658964679,0.93277325,3214.5,3213.7,0.99659132]
[1767658965886,4.04368912,3214.5,3213.7,0.99659132]
[1767658966196,4.04368912,3214.5,3214.0,0.002]
[1767658966380,4.84053892,3214.5,3214.0,0.002]
[1767658966692,0.93277325,3214.4,3214.0,0.002]
[1767658967997,4.04379782,3214.4,3214.0,0.002]
[1767658968804,0.93277325,3214.4,3214.0,0.002]
[1767658969485,4.04377644,3214.4,3214.0,0.002]
[1767658969806,0.93277325,3214.3,3214.0,0.002]
[1767658970095,0.93277325,3214.3,3213.7,0.00097381]
[1767658970599,0.93077325,3214.3,3213.7,0.00097381]
[1767658971568,0.93077325,3214.3,3213.7,0.99556513]
[1767658971773,0.93277325,3214.5,3213.7,0.99556513]
[1767658972744,6.41,3214.9,3214.0,0.99459132]
[1767658973041,10.33452792,3214.9,3214.2,0.99459132]
[1767658973205,0.93277325,3214.8,3213.7,0.99556513]
[1767658973391,0.93277325,3214.8,3213.7,0.00097381]
[1767658973598,0.93277325,3214.6,3213.7,0.00097381]
[1767658974999,0.93277325,3214.6,3213.4,4.09861429]
[1767658975526,0.9133785,3214.4,3213.4,4.09861429]
[1767658976725,0.9133785,3214.4,3213.0,0.817]
[1767658976927,0.9133785,3214.4,3213.2,0.9618347]
[1767658977236,0.9133785,3214.2,3213.3,1.26209587]
[1767658977407,0.9133785,3214.2,3213.4,0.9618347]
[1767658977725,0.71351859,3214.3,3213.4,0.9618347]
[1767658978027,0.71351859,3214.3,3213.5,0.9618347]
[1767658978320,0.9133785,3214.5,3213.7,0.9638347]
[1767658978321,0.814,3214.5,3213.7,0.9638347]
[1767658979651,0.814,3214.5,3213.9,0.9618347]
[1767658980340,0.814,3214.5,3214.0,0.03111387]
[1767658980636,0.814,3214.8,3214.0,0.99294857]
[1767658980840,1.84744431,3214.8,3214.0,0.99294857]
[1767658981411,3.11133626,3215.1,3214.0,0.99294857]
[1767658981639,0.814,3215.0,3214.0,0.9618347]
[1767658981838,0.001,3215.1,3214.2,0.93824162]
[1767658982135,0.001,3215.1,3214.4,0.93824162]
[1767658984041,0.001,3215.1,3214.5,0.93824162]
[1767658985943,0.001,3215.1,3214.6,0.93824162]
[1767658986518,0.001,3215.1,3214.2,0.93824162]
[1767658986816,0.92774517,3215.1,3214.2,0.93824162]
[1767658987016,0.92774517,3215.1,3214.3,1.4246944]
[1767658987954,0.92774517,3215.1,3214.4,0.93824162]
[1767658987955,0.001,3215.1,3214.4,0.93824162]
[1767658988257,0.001,3215.1,3214.4,4.08029326]
[1767658988564,0.92674517,3216.0,3214.8,0.93824162]
[1767658988762,0.814,3215.9,3214.8,0.93824162]
[1767658989558,1.74074517,3215.9,3214.8,0.93824162]
[1767658990564,3.10964612,3215.8,3214.8,0.93824162]
[1767658991062,0.92674517,3215.7,3214.5,0.93824162]
[1767658991244,0.92674517,3215.6,3214.6,1.11356578]
[1767658991444,0.92674517,3215.6,3214.6,4.2243328]
[1767658991762,0.92674517,3215.6,3214.7,0.93824162]
[1767658993860,4.03660539,3215.6,3214.7,0.93824162]
[1767658994065,0.92674517,3215.6,3214.7,0.93824162]
[1767658994266,4.03659244,3215.6,3214.8,0.42243537]
[1767658994646,0.92674517,3215.5,3214.7,0.93824162]
[1767658995572,0.92674517,3215.5,3214.6,0.17532416]
[1767658995786,0.92674517,3215.4,3214.5,4.04913172]
[1767658995989,0.92674517,3215.4,3214.6,0.93824162]
[1767658997276,0.92674517,3215.9,3215.0,0.93824162]
[1767658997453,0.814,3216.1,3215.3,0.93824162]
[1767658997664,3.10945273,3216.0,3215.3,0.93824162]
[1767658999464,0.92674517,3215.9,3214.7,0.93824162]
[1767659001154,0.92674517,3215.7,3214.8,0.93824162]
[1767659001577,0.92774517,3215.7,3214.8,0.93824162]
[1767659001786,0.92774517,3215.7,3215.1,0.93824162]
[1767659001787,0.001,3215.7,3215.1,0.93824162]
[1767659002080,0.001,3215.7,3215.0,4.05858485]
[1767659002081,0.001,3215.7,3215.3,0.93824162]
[1767659006187,0.001,3215.7,3215.3,0.93707134]
[1767659009984,0.92774517,3215.7,3215.0,0.93824162]
[1767659010194,0.92774517,3215.7,3214.6,0.93824162]
[1767659010568,0.92774517,3215.7,3214.8,0.93824162]
[1767659010767,0.92774517,3215.7,3214.9,0.93824162]
[1767659010988,0.92774517,3215.7,3215.0,1.34749614]
[1767659012607,0.94425937,3215.6,3214.7,4.05328678]
[1767659012770,0.94425937,3215.6,3214.8,0.94261603]
[1767659012971,0.94425937,3215.6,3214.9,0.03110516]
[1767659013189,0.94425937,3215.6,3214.9,4.08418468]
[1767659013492,0.94425937,3215.6,3215.0,3.11038522]
[1767659013797,0.001,3215.7,3215.2,0.94261603]
[1767659013798,0.001,3215.4,3215.2,0.94261603]
[1767659013967,0.001,3215.7,3215.1,0.71945699]
[1767659014167,0.001,3215.7,3215.2,0.94261603]
[1767659015809,0.001,3215.7,3215.4,0.94261603]
[1767659017901,0.94525937,3215.7,3214.9,0.94261603]
[1767659018112,0.94525937,3215.7,3214.9,1.3479423]
[1767659018620,0.94525937,3215.7,3214.9,0.94261603]
[1767659019401,0.001,3215.7,3214.9,0.94261603]
[1767659019728,0.001,3215.7,3215.2,0.94261603]
[1767659019899,0.001,3215.7,3215.3,0.97371732]
[1767659020230,0.001,3215.7,3215.2,3.11017827]
[1767659020231,0.001,3215.7,3214.9,4.0530565]
[1767659020530,0.001,3215.7,3215.1,0.94261603]
[1767659021728,0.001,3215.7,3215.3,0.94261603]
[1767659021919,0.94425937,3216.1,3215.4,0.97371635]
[1767659022245,0.94425937,3216.1,3215.4,0.03110032]
[1767659022614,0.94425937,3216.1,3215.3,0.97371635]
[1767659022820,0.814,3216.3,3215.4,5.40767284]
[1767659023036,1.75825937,3216.3,3215.4,5.40767284]
[1767659023234,0.94425937,3216.2,3215.4,5.40767284]
[1767659023644,0.94425937,3216.2,3215.4,0.40838996]
[1767659023844,7.0323468,3216.3,3215.1,4.05288708]
[1767659023845,0.94425937,3216.1,3215.1,4.05288708]
[1767659024148,0.94425937,3216.1,3215.3,4.05666685]
[1767659024348,0.94425937,3216.1,3215.3,4.99928288]
[1767659025323,0.94425937,3216.1,3215.4,0.002]
[1767659025647,0.94425937,3216.1,3215.5,0.81113384]
[1767659027526,3.92318402,3216.3,3215.5,1.75374987]
[1767659027731,4.86744339,3216.3,3215.5,1.75374987]
[1767659028849,1.75825937,3216.3,3215.5,1.75374987]
[1767659029053,0.28954203,3216.2,3215.6,0.97371442]
[1767659029347,0.94525937,3216.7,3216.0,0.94261603]
[1767659029551,0.28950701,3216.6,3216.0,0.94261603]
[1767659029726,0.28950701,3216.5,3216.1,0.94261603]
[1767659029929,0.001,3216.7,3216.2,1.34782067]
[1767659030129,0.28952794,3216.6,3216.3,0.94261603]
[1767659030336,0.001,3217.2,3216.5,0.94261603]
[1767659030531,3.39777837,3217.1,3216.5,0.94261603]
[1767659030848,0.94425937,3216.9,3216.2,4.46187149]
[1767659031052,3.10838954,3217.1,3216.4,0.94261603]
[1767659031241,0.28938751,3217.0,3216.4,0.94261603]
[1767659031443,3.10838954,3217.1,3216.4,0.94261603]
[1767659031643,0.28916873,3217.0,3216.4,0.94261603]
[1767659031840,0.28916521,3216.9,3216.4,0.94261603]
[1767659032200,0.94525937,3217.2,3216.1,0.94261603]
[1767659032318,0.94425937,3216.9,3215.8,0.94261603]
[1767659032523,1.23327983,3216.8,3215.8,0.94261603]
[1767659032738,0.94425937,3216.8,3215.8,0.94261603]
[1767659033139,0.94425937,3216.6,3215.5,0.94261603]
[1767659033324,0.94425937,3216.3,3215.4,0.002]
[1767659033524,6.21851874,3216.2,3215.4,0.002]
[1767659035134,6.21851874,3216.2,3215.4,0.99710398]
[1767659037364,7.2107169,3216.2,3215.4,0.99710398]
[1767659037553,0.99219816,3216.1,3215.7,0.002]
[1767659037858,0.99219816,3216.0,3215.4,0.002]
[1767659038363,3.10954942,3215.9,3215.4,0.002]
[1767659038854,7.211297,3215.9,3215.4,0.002]
[1767659039044,0.7211297,3215.8,3215.4,0.002]
[1767659039963,3.10974282,3215.7,3215.4,0.002]
[1767659040263,4.10194098,3215.7,3215.0,0.002]
[1767659040447,0.99219816,3215.6,3214.8,0.99510398]
[1767659041668,0.99219816,3215.6,3214.2,0.90012747]
[1767659041855,0.99219816,3215.6,3214.5,0.90012747]
[1767659042439,6.21987248,3215.5,3214.5,0.90012747]
[1767659043050,6.21787248,3215.5,3214.5,0.90012747]
[1767659043278,0.99708356,3215.4,3214.5,0.90012747]
[1767659043479,0.99708356,3215.2,3214.2,0.90012747]
[1767659043669,0.99708356,3215.1,3213.9,0.90012747]
[1767659043978,0.99708356,3214.9,3213.9,0.90012747]
[1767659044571,7.21831038,3214.8,3213.9,0.90012747]
[1767659044854,0.72183104,3214.7,3213.9,0.90012747]
[1767659045168,0.99708356,3214.6,3213.7,0.002]
[1767659045863,0.99708356,3214.6,3213.7,0.90212747]
[1767659047878,6.22180742,3214.5,3213.7,0.90212747]
[1767659048079,8.09436318,3214.5,3213.7,0.90212747]
[1767659048864,0.99708356,3214.4,3213.7,0.002]
[1767659049466,0.001,3214.3,3213.7,0.002]
[1767659049662,0.99808356,3214.3,3213.7,0.002]
[1767659049990,6.22238814,3214.2,3213.7,0.002]
[1767659050155,6.94443531,3214.2,3213.7,0.002]
[1767659051481,3.83324124,3214.2,3213.7,0.002]
[1767659051782,6.94443531,3214.2,3213.7,0.002]
[1767659051988,3.83324124,3214.2,3213.7,0.002]
[1767659053569,6.94443531,3214.2,3213.7,0.002]
[1767659053769,0.99708356,3214.0,3213.1,0.89909725]
[1767659054715,0.99708356,3214.0,3213.0,0.90212747]
[1767659055291,3.11148448,3213.9,3213.0,0.90212747]
[1767659055696,6.22296896,3213.9,3213.0,0.90212747]
[1767659055990,0.72200525,3213.8,3213.0,0.90212747]
[1767659057094,0.99708356,3213.7,3213.0,0.002]
[1767659057275,6.2235499,3213.6,3213.0,0.002]
[1767659057884,0.99708356,3213.5,3213.0,0.002]
[1767659058104,1.71914691,3213.5,3213.0,0.002]
[1767659058510,0.99708356,3213.4,3212.6,0.002]
[1767659059278,7.2212145,3213.3,3212.6,0.002]
[1767659059879,4.10914903,3213.3,3212.6,0.002]
[1767659060100,4.90346887,3213.3,3212.6,0.002]
[1767659060301,3.90638531,3213.3,3212.6,0.90212747]
[1767659060608,7.01845078,3213.3,3212.6,0.90212747]
[1767659061110,3.90638531,3213.3,3212.6,0.90212747]
[1767659061285,3.90638531,3213.3,3212.9,0.002]
[1767659061489,0.80154643,3213.2,3212.9,0.002]
[1767659061689,4.10911076,3213.4,3212.9,0.002]
[1767659064481,0.72206335,3213.5,3212.9,0.90212747]
[1767659064775,4.64761487,3213.8,3213.0,0.93125103]
[1767659065009,3.1112206,3214.2,3213.0,0.93125103]
[1767659065305,3.11138767,3214.0,3213.0,0.90012747]
[1767659065611,7.2198589,3214.0,3213.0,0.90012747]
[1767659066109,0.99708356,3213.9,3213.0,0.90012747]
[1767659066310,0.99708356,3213.9,3213.0,1.30159206]
[1767659066611,0.99708356,3213.9,3213.1,0.90012747]
[1767659067078,0.99708356,3213.7,3212.9,0.002]
[1767659067404,7.22063346,3213.6,3212.9,0.002]
[1767659067605,0.99708356,3213.5,3212.9,0.002]
[1767659070025,3.11196863,3213.4,3212.9,0.002]
[1767659070185,4.10905219,3213.4,3212.9,0.002]
[1767659070580,0.99708356,3213.3,3212.9,0.002]